[Event "Titled Tuesday Blitz November 15 Early 2022"]
[White "Ezat, Mohamed"]
[Black "Yuan, Qingyu"]
[WhiteFideId "10600906"]
[BlackFideId "8609772"]
[WhiteElo "2386"]
[BlackElo "2359"]
[Result "0-1"]
[Round "09"]
[TimeControl "180+1"]
[Date "2022.11.16"]
[WhiteClock "0:00:09"]
[BlackClock "0:00:15"]

1. d4 {[%clk 0:02:47]}  d5 {[%clk 0:02:59]} 2. c4 {[%clk 0:02:46]}  e6 {[%clk 0:03:00]} 3. Nc3 {[%clk 0:02:46]}  Nf6 {[%clk 0:02:59]} 4. cxd5 {[%clk 0:02:46]}  exd5 {[%clk 0:03:00]} 5. Bg5 {[%clk 0:02:46]}  c6 {[%clk 0:03:00]} 6. Qc2 {[%clk 0:02:44]}  h6 {[%clk 0:02:59]} 7. Bf4 {[%clk 0:02:39]}  Bd6 {[%clk 0:02:58]} 8. Bxd6 {[%clk 0:02:39]}  Qxd6 {[%clk 0:02:57]} 9. e3 {[%clk 0:02:39]}  O-O {[%clk 0:02:53]} 10. Bd3 {[%clk 0:02:40]}  Re8 {[%clk 0:02:49]} 11. Nf3 {[%clk 0:02:37]}  Bg4 {[%clk 0:02:46]} 12. Ne5 {[%clk 0:02:37]}  Bc8 {[%clk 0:02:23]} 13. O-O {[%clk 0:02:35]}  Nbd7 {[%clk 0:02:11]} 14. f4 {[%clk 0:02:34]}  b6 {[%clk 0:02:08]} 15. g4 {[%clk 0:02:19]}  Nf8 {[%clk 0:01:58]} 16. h3 {[%clk 0:02:10]}  N6d7 {[%clk 0:01:52]} 17. Ne2 {[%clk 0:02:03]}  Bb7 {[%clk 0:01:25]} 18. Ng3 {[%clk 0:02:02]}  c5 {[%clk 0:01:25]} 19. Bb5 {[%clk 0:01:53]}  Rec8 {[%clk 0:01:20]} 20. Nf5 {[%clk 0:01:47]}  Qe6 {[%clk 0:01:19]} 21. Qa4 {[%clk 0:01:45]}  Nf6 {[%clk 0:01:15]} 22. Bd3 {[%clk 0:01:23]}  Ne4 {[%clk 0:01:11]} 23. Bxe4 {[%clk 0:01:21]}  dxe4 {[%clk 0:01:12]} 24. Rad1 {[%clk 0:01:17]}  Rd8 {[%clk 0:00:42]} 25. Qb3 {[%clk 0:00:52]}  Bd5 {[%clk 0:00:39]} 26. Qc2 {[%clk 0:00:48]}  f6 {[%clk 0:00:32]} 27. dxc5 {[%clk 0:00:46]}  fxe5 {[%clk 0:00:32]} 28. c6 {[%clk 0:00:42]}  Rac8 {[%clk 0:00:30]} 29. c7 {[%clk 0:00:42]}  Rd7 {[%clk 0:00:27]} 30. Qa4 {[%clk 0:00:38]}  Rcxc7 {[%clk 0:00:24]} 31. fxe5 {[%clk 0:00:37]}  Qxe5 {[%clk 0:00:24]} 32. Rf4 {[%clk 0:00:37]}  Ne6 {[%clk 0:00:23]} 33. Rf2 {[%clk 0:00:31]}  Kh7 {[%clk 0:00:23]} 34. Rdf1 {[%clk 0:00:30]}  Bc4 {[%clk 0:00:20]} 35. Rc1 {[%clk 0:00:26]}  Bd3 {[%clk 0:00:19]} 36. Rc3 {[%clk 0:00:23]}  Rf7 {[%clk 0:00:18]} 37. Qd1 {[%clk 0:00:21]}  Ng5 {[%clk 0:00:18]} 38. Kg2 {[%clk 0:00:20]}  Rxc3 {[%clk 0:00:18]} 39. bxc3 {[%clk 0:00:19]}  Nf3 {[%clk 0:00:17]} 40. Ng3 {[%clk 0:00:12]}  Qxc3 {[%clk 0:00:13]} 41. g5 {[%clk 0:00:09]}  Nh4+ {[%clk 0:00:12]} 42. Kg1 {[%clk 0:00:08]}  Rxf2 {[%clk 0:00:12]} 43. Kxf2 {[%clk 0:00:08]}  Qc2+ {[%clk 0:00:12]} 44. Qxc2 {[%clk 0:00:08]}  Bxc2 {[%clk 0:00:13]} 45. gxh6 {[%clk 0:00:07]}  Kxh6 {[%clk 0:00:14]} 46. Nf1 {[%clk 0:00:07]}  Bd3 {[%clk 0:00:14]} 47. Nd2 {[%clk 0:00:06]}  Kg5 {[%clk 0:00:14]} 48. Kg3 {[%clk 0:00:06]}  Nf5+ {[%clk 0:00:14]} 49. Kf2 {[%clk 0:00:07]}  Kh4 {[%clk 0:00:15]} 50. Nb3 {[%clk 0:00:07]}  Bc4 {[%clk 0:00:15]} 51. Nd2 {[%clk 0:00:06]}  Bd5 {[%clk 0:00:15]} 52. Nf1 {[%clk 0:00:06]}  Kxh3 {[%clk 0:00:15]} 53. Nd2 {[%clk 0:00:06]}  g5 {[%clk 0:00:15]} 54. Nb1 {[%clk 0:00:07]}  g4 {[%clk 0:00:15]} 55. Nc3 {[%clk 0:00:08]}  Bc6 {[%clk 0:00:15]} 56. Kg1 {[%clk 0:00:09]}  Nxe3 {[%clk 0:00:15]} 57. Ne2 {[%clk 0:00:09]}  Nd5 {[%clk 0:00:15]} 58. Nf4+ {[%clk 0:00:09]}  Nxf4 {[%clk 0:00:15]} 59. a4 {[%clk 0:00:10]}  e3 {[%clk 0:00:15]} 60. a5 {[%clk 0:00:11]}  g3 {[%clk 0:00:15]} 61. axb6 {[%clk 0:00:11]}  e2 {[%clk 0:00:15]} 62. bxa7 {[%clk 0:00:10]}  Bb7 {[%clk 0:00:14]} 63. a8=Q {[%clk 0:00:09]}  e1=Q# {[%clk 0:00:15]} 0-1


[Site "https://www.chess.com"]

[Event "Titled Tuesday Blitz November 15 Early 2022"]
[White "Fajdetic, Hrvoje"]
[Black "Simonovic, Miroslav"]
[WhiteFideId "14501945"]
[BlackFideId "919152"]
[WhiteElo "2172"]
[BlackElo "2043"]
[Result "1-0"]
[Round "09"]
[TimeControl "180+1"]
[Date "2022.11.16"]
[WhiteClock "0:00:18"]
[BlackClock "0:00:01"]

1. b3 {[%clk 0:02:55]}  c5 {[%clk 0:02:59]} 2. Bb2 {[%clk 0:02:55]}  Nc6 {[%clk 0:03:00]} 3. g3 {[%clk 0:02:55]}  d6 {[%clk 0:03:00]} 4. Bg2 {[%clk 0:02:55]}  e5 {[%clk 0:03:01]} 5. e3 {[%clk 0:02:55]}  g6 {[%clk 0:03:01]} 6. Ne2 {[%clk 0:02:55]}  Bg7 {[%clk 0:03:01]} 7. d4 {[%clk 0:02:55]}  Nge7 {[%clk 0:02:51]} 8. O-O {[%clk 0:02:53]}  O-O {[%clk 0:02:50]} 9. c4 {[%clk 0:02:52]}  exd4 {[%clk 0:02:44]} 10. exd4 {[%clk 0:02:53]}  cxd4 {[%clk 0:02:44]} 11. Nxd4 {[%clk 0:02:52]}  d5 {[%clk 0:02:39]} 12. Nxc6 {[%clk 0:02:51]}  bxc6 {[%clk 0:02:39]} 13. Bxg7 {[%clk 0:02:51]}  Kxg7 {[%clk 0:02:39]} 14. Qd4+ {[%clk 0:02:47]}  Kg8 {[%clk 0:02:36]} 15. Rd1 {[%clk 0:02:48]}  Be6 {[%clk 0:02:35]} 16. Nd2 {[%clk 0:02:38]}  Qb6 {[%clk 0:02:26]} 17. c5 {[%clk 0:02:37]}  Qa5 {[%clk 0:02:11]} 18. b4 {[%clk 0:02:35]}  Qa4 {[%clk 0:02:05]} 19. Nf3 {[%clk 0:02:29]}  a5 {[%clk 0:02:03]} 20. a3 {[%clk 0:02:27]}  Rfb8 {[%clk 0:01:59]} 21. Ng5 {[%clk 0:02:16]}  Nf5 {[%clk 0:01:49]} 22. Qf6 {[%clk 0:02:11]}  Re8 {[%clk 0:01:26]} 23. Re1 {[%clk 0:02:01]}  Ng7 {[%clk 0:01:25]} 24. Nxe6 {[%clk 0:01:02]}  Rxe6 {[%clk 0:01:24]} 25. Rxe6 {[%clk 0:01:01]}  Nxe6 {[%clk 0:01:24]} 26. Bh3 {[%clk 0:00:58]}  Re8 {[%clk 0:01:08]} 27. Re1 {[%clk 0:00:36]}  axb4 {[%clk 0:00:16]} 28. Bxe6 {[%clk 0:00:35]}  fxe6 {[%clk 0:00:14]} 29. Rxe6 {[%clk 0:00:33]}  Qd1+ {[%clk 0:00:11]} 30. Kg2 {[%clk 0:00:31]}  Rf8 {[%clk 0:00:11]} 31. Qb2 {[%clk 0:00:19]}  bxa3 {[%clk 0:00:08]} 32. Qxa3 {[%clk 0:00:18]}  Qd4 {[%clk 0:00:03]} 33. Qe3 {[%clk 0:00:17]}  Qxe3 {[%clk 0:00:01]} 34. Rxe3 {[%clk 0:00:18]}  Rc8 {[%clk 0:00:01]} 35. Re7 {[%clk 0:00:18]} 1-0


[Site "https://www.chess.com"]

[Event "Titled Tuesday Blitz November 15 Early 2022"]
[White "Fiol, Fabrice"]
[Black "Kula, Robert"]
[WhiteFideId "611670"]
[BlackFideId "1101218"]
[WhiteElo "2410"]
[BlackElo "2184"]
[Result "0-1"]
[Round "09"]
[TimeControl "180+1"]
[Date "2022.11.16"]
[WhiteClock "0:00:03"]
[BlackClock "0:00:40"]

1. e4 {[%clk 0:03:00]}  c5 {[%clk 0:02:59]} 2. Nf3 {[%clk 0:03:00]}  Nc6 {[%clk 0:02:59]} 3. Bb5 {[%clk 0:02:59]}  g6 {[%clk 0:02:57]} 4. O-O {[%clk 0:02:59]}  Bg7 {[%clk 0:02:55]} 5. c3 {[%clk 0:03:00]}  a6 {[%clk 0:02:49]} 6. Ba4 {[%clk 0:02:59]}  b5 {[%clk 0:02:49]} 7. Bc2 {[%clk 0:02:59]}  c4 {[%clk 0:02:48]} 8. a4 {[%clk 0:02:58]}  Bb7 {[%clk 0:02:47]} 9. d3 {[%clk 0:02:57]}  cxd3 {[%clk 0:02:46]} 10. Bxd3 {[%clk 0:02:58]}  bxa4 {[%clk 0:02:46]} 11. Qxa4 {[%clk 0:02:54]}  Nf6 {[%clk 0:02:46]} 12. Re1 {[%clk 0:02:43]}  O-O {[%clk 0:02:45]} 13. e5 {[%clk 0:02:41]}  Nd5 {[%clk 0:02:44]} 14. Qh4 {[%clk 0:02:33]}  Qc7 {[%clk 0:02:35]} 15. Bh6 {[%clk 0:02:25]}  Nxe5 {[%clk 0:02:25]} 16. Nxe5 {[%clk 0:02:18]}  Bxe5 {[%clk 0:02:25]} 17. Bxf8 {[%clk 0:02:13]}  Rxf8 {[%clk 0:02:24]} 18. Be4 {[%clk 0:02:02]}  Bf6 {[%clk 0:02:12]} 19. Qg3 {[%clk 0:01:44]}  Be5 {[%clk 0:02:12]} 20. Qh3 {[%clk 0:01:36]}  Nf4 {[%clk 0:02:09]} 21. Qf3 {[%clk 0:01:36]}  d5 {[%clk 0:02:07]} 22. Bc2 {[%clk 0:01:26]}  f5 {[%clk 0:01:58]} 23. Qe3 {[%clk 0:00:50]}  Bd6 {[%clk 0:01:58]} 24. Nd2 {[%clk 0:00:36]}  e5 {[%clk 0:01:50]} 25. Nf3 {[%clk 0:00:34]}  d4 {[%clk 0:01:04]} 26. Bb3+ {[%clk 0:00:33]}  Kg7 {[%clk 0:01:01]} 27. cxd4 {[%clk 0:00:34]}  e4 {[%clk 0:01:01]} 28. Ng5 {[%clk 0:00:28]}  h6 {[%clk 0:00:52]} 29. Qxf4 {[%clk 0:00:25]}  hxg5 {[%clk 0:00:51]} 30. Qxg5 {[%clk 0:00:22]}  Bxh2+ {[%clk 0:00:51]} 31. Kf1 {[%clk 0:00:21]}  Bf4 {[%clk 0:00:49]} 32. Qh4 {[%clk 0:00:18]}  Rh8 {[%clk 0:00:48]} 33. Qxh8+ {[%clk 0:00:06]}  Kxh8 {[%clk 0:00:48]} 34. g3 {[%clk 0:00:07]}  Bxg3 {[%clk 0:00:46]} 35. Rac1 {[%clk 0:00:06]}  Qf4 {[%clk 0:00:45]} 36. Re2 {[%clk 0:00:05]}  Qxc1+ {[%clk 0:00:42]} 37. Kg2 {[%clk 0:00:05]}  Bd6 {[%clk 0:00:40]} 38. f3 {[%clk 0:00:03]}  exf3+ {[%clk 0:00:40]} 0-1


[Site "https://www.chess.com"]

[Event "Titled Tuesday Blitz November 15 Early 2022"]
[White "Firouzja, Alireza"]
[Black "Alekseenko, Kirill"]
[WhiteFideId "12573981"]
[BlackFideId "4135539"]
[WhiteElo "2903"]
[BlackElo "2682"]
[Result "1-0"]
[Round "09"]
[TimeControl "180+1"]
[Date "2022.11.15"]
[WhiteClock "0:00:12"]
[BlackClock "0:00:08"]

1. d4 {[%clk 0:03:00]}  d5 {[%clk 0:03:00]} 2. Bg5 {[%clk 0:03:00]}  Nf6 {[%clk 0:02:57]} 3. e3 {[%clk 0:03:00]}  c5 {[%clk 0:02:58]} 4. Bxf6 {[%clk 0:03:00]}  gxf6 {[%clk 0:02:56]} 5. dxc5 {[%clk 0:03:01]}  e6 {[%clk 0:02:56]} 6. c4 {[%clk 0:03:01]}  dxc4 {[%clk 0:02:52]} 7. Nd2 {[%clk 0:03:01]}  Bxc5 {[%clk 0:02:47]} 8. Bxc4 {[%clk 0:03:00]}  Nc6 {[%clk 0:02:45]} 9. Ngf3 {[%clk 0:03:00]}  O-O {[%clk 0:02:35]} 10. O-O {[%clk 0:03:00]}  Be7 {[%clk 0:02:27]} 11. Qe2 {[%clk 0:02:56]}  Kh8 {[%clk 0:02:25]} 12. Rfd1 {[%clk 0:02:56]}  Qc7 {[%clk 0:02:24]} 13. Rac1 {[%clk 0:02:56]}  Bd7 {[%clk 0:02:24]} 14. Nf1 {[%clk 0:02:55]}  Rad8 {[%clk 0:02:23]} 15. Ng3 {[%clk 0:02:55]}  Bc8 {[%clk 0:02:22]} 16. Bd3 {[%clk 0:02:53]}  Rg8 {[%clk 0:02:17]} 17. Nd4 {[%clk 0:02:51]}  f5 {[%clk 0:01:46]} 18. Nxc6 {[%clk 0:01:56]}  bxc6 {[%clk 0:01:47]} 19. Qc2 {[%clk 0:01:57]}  Bb7 {[%clk 0:01:41]} 20. Qc3+ {[%clk 0:01:56]}  f6 {[%clk 0:01:37]} 21. Bc4 {[%clk 0:01:56]}  Rxd1+ {[%clk 0:01:17]} 22. Rxd1 {[%clk 0:01:57]}  Bc8 {[%clk 0:01:18]} 23. Ne2 {[%clk 0:01:49]}  Rd8 {[%clk 0:01:16]} 24. Rc1 {[%clk 0:01:45]}  e5 {[%clk 0:01:10]} 25. Ng3 {[%clk 0:01:39]}  Qb6 {[%clk 0:01:08]} 26. Qc2 {[%clk 0:01:35]}  Qb4 {[%clk 0:01:03]} 27. Bf1 {[%clk 0:00:55]}  c5 {[%clk 0:00:56]} 28. a3 {[%clk 0:00:35]}  Qd2 {[%clk 0:00:55]} 29. Qb1 {[%clk 0:00:36]}  e4 {[%clk 0:00:43]} 30. Nh5 {[%clk 0:00:32]}  Be6 {[%clk 0:00:42]} 31. g3 {[%clk 0:00:29]}  a5 {[%clk 0:00:38]} 32. Nf4 {[%clk 0:00:23]}  Bb3 {[%clk 0:00:38]} 33. Bc4 {[%clk 0:00:21]}  Bxc4 {[%clk 0:00:26]} 34. Rxc4 {[%clk 0:00:22]}  Qd1+ {[%clk 0:00:26]} 35. Qxd1 {[%clk 0:00:22]}  Rxd1+ {[%clk 0:00:27]} 36. Kg2 {[%clk 0:00:23]}  Rd2 {[%clk 0:00:28]} 37. Ra4 {[%clk 0:00:19]}  Rxb2 {[%clk 0:00:25]} 38. Rxa5 {[%clk 0:00:19]}  c4 {[%clk 0:00:25]} 39. Ra7 {[%clk 0:00:13]}  Bc5 {[%clk 0:00:16]} 40. Ra8+ {[%clk 0:00:12]}  Kg7 {[%clk 0:00:14]} 41. Ne6+ {[%clk 0:00:13]}  Kh6 {[%clk 0:00:14]} 42. Nxc5 {[%clk 0:00:14]}  c3 {[%clk 0:00:15]} 43. Na4 {[%clk 0:00:12]}  Rb3 {[%clk 0:00:08]} 44. Rc8 {[%clk 0:00:12]}  Rxa3 {[%clk 0:00:08]} 45. Nxc3 {[%clk 0:00:12]} 1-0


[Site "https://www.chess.com"]

[Event "Titled Tuesday Blitz November 15 Early 2022"]
[White "Garv Gaur"]
[Black "Fernandez Siles, Luis"]
[WhiteFideId "45030839"]
[BlackFideId "2209420"]
[WhiteElo "1960"]
[BlackElo "2186"]
[Result "0-1"]
[Round "09"]
[TimeControl "180+1"]
[Date "2022.11.16"]
[WhiteClock "0:00:15"]
[BlackClock "0:00:11"]

1. d4 {[%clk 0:03:00]}  Nf6 {[%clk 0:02:59]} 2. Nf3 {[%clk 0:02:55]}  g6 {[%clk 0:02:59]} 3. c4 {[%clk 0:02:54]}  Bg7 {[%clk 0:02:59]} 4. g3 {[%clk 0:02:54]}  O-O {[%clk 0:02:59]} 5. Bg2 {[%clk 0:02:55]}  d6 {[%clk 0:02:56]} 6. O-O {[%clk 0:02:55]}  c6 {[%clk 0:02:57]} 7. Nc3 {[%clk 0:02:55]}  Qa5 {[%clk 0:02:56]} 8. h3 {[%clk 0:02:54]}  e5 {[%clk 0:02:57]} 9. e4 {[%clk 0:02:54]}  exd4 {[%clk 0:02:56]} 10. Nxd4 {[%clk 0:02:55]}  Qc5 {[%clk 0:02:57]} 11. Bf4 {[%clk 0:02:43]}  Ne8 {[%clk 0:02:49]} 12. Nb3 {[%clk 0:02:25]}  Qxc4 {[%clk 0:02:48]} 13. Bxd6 {[%clk 0:02:26]}  Nxd6 {[%clk 0:02:46]} 14. Qxd6 {[%clk 0:02:27]}  Bxc3 {[%clk 0:02:40]} 15. bxc3 {[%clk 0:02:24]}  Qxc3 {[%clk 0:02:40]} 16. e5 {[%clk 0:02:22]}  Na6 {[%clk 0:02:35]} 17. Qf6 {[%clk 0:02:08]}  Re8 {[%clk 0:02:15]} 18. Rac1 {[%clk 0:02:01]}  Qxe5 {[%clk 0:02:08]} 19. Qf3 {[%clk 0:02:01]}  Be6 {[%clk 0:01:56]} 20. Rfe1 {[%clk 0:02:00]}  Qf5 {[%clk 0:01:55]} 21. Qc3 {[%clk 0:01:55]}  Bxb3 {[%clk 0:01:52]} 22. axb3 {[%clk 0:01:56]}  Nc7 {[%clk 0:01:43]} 23. Rcd1 {[%clk 0:01:35]}  Rad8 {[%clk 0:01:36]} 24. g4 {[%clk 0:01:25]}  Qf4 {[%clk 0:01:13]} 25. Qa5 {[%clk 0:01:16]}  Rxd1 {[%clk 0:01:06]} 26. Rxd1 {[%clk 0:01:16]}  Nb5 {[%clk 0:00:59]} 27. Qa1 {[%clk 0:01:07]}  Qe5 {[%clk 0:00:53]} 28. Qc1 {[%clk 0:00:58]}  Nc3 {[%clk 0:00:49]} 29. Rd2 {[%clk 0:00:33]}  Ne2+ {[%clk 0:00:46]} 30. Rxe2 {[%clk 0:00:34]}  Qxe2 {[%clk 0:00:47]} 31. Bf1 {[%clk 0:00:34]}  Qe5 {[%clk 0:00:39]} 32. Qh6 {[%clk 0:00:31]}  Qf6 {[%clk 0:00:32]} 33. h4 {[%clk 0:00:28]}  Re1 {[%clk 0:00:29]} 34. Qd2 {[%clk 0:00:21]}  Qa1 {[%clk 0:00:24]} 35. Qd3 {[%clk 0:00:20]}  Qe5 {[%clk 0:00:19]} 36. h5 {[%clk 0:00:16]}  gxh5 {[%clk 0:00:19]} 37. Qd8+ {[%clk 0:00:15]}  Kg7 {[%clk 0:00:18]} 38. g5 {[%clk 0:00:15]}  Qe7 {[%clk 0:00:17]} 39. Qd4+ {[%clk 0:00:14]}  Qe5 {[%clk 0:00:17]} 40. Qd8 {[%clk 0:00:15]}  h4 {[%clk 0:00:16]} 41. Qd2 {[%clk 0:00:08]}  h3 {[%clk 0:00:14]} 42. f4 {[%clk 0:00:08]}  Qe3+ {[%clk 0:00:14]} 43. Qxe3 {[%clk 0:00:08]}  Rxe3 {[%clk 0:00:15]} 44. Kf2 {[%clk 0:00:09]}  Rxb3 {[%clk 0:00:14]} 45. f5 {[%clk 0:00:10]}  Rb2+ {[%clk 0:00:12]} 46. Kg3 {[%clk 0:00:10]}  h2 {[%clk 0:00:12]} 47. Bg2 {[%clk 0:00:10]}  Rxg2+ {[%clk 0:00:11]} 48. Kxg2 {[%clk 0:00:11]}  a5 {[%clk 0:00:11]} 49. Kxh2 {[%clk 0:00:12]}  a4 {[%clk 0:00:12]} 50. Kg3 {[%clk 0:00:12]}  a3 {[%clk 0:00:12]} 51. Kh4 {[%clk 0:00:13]}  a2 {[%clk 0:00:12]} 52. Kh5 {[%clk 0:00:14]}  a1=Q {[%clk 0:00:12]} 53. f6+ {[%clk 0:00:14]}  Kg8 {[%clk 0:00:11]} 54. Kh6 {[%clk 0:00:15]}  Qh1# {[%clk 0:00:11]} 0-1


[Site "https://www.chess.com"]

[Event "Titled Tuesday Blitz November 15 Early 2022"]
[White "Ghosh, Chanchal Kumer"]
[Black "Player, Edmund C"]
[WhiteFideId "10201858"]
[BlackFideId "406520"]
[WhiteElo "2058"]
[BlackElo "2103"]
[Result "1-0"]
[Round "09"]
[TimeControl "180+1"]
[Date "2022.11.16"]
[WhiteClock "0:02:14"]
[BlackClock "0:00:45"]

1. e4 {[%clk 0:03:00]}  e5 {[%clk 0:02:59]} 2. Nf3 {[%clk 0:03:01]}  Nc6 {[%clk 0:02:59]} 3. Bc4 {[%clk 0:03:01]}  Bc5 {[%clk 0:02:58]} 4. c3 {[%clk 0:03:01]}  Nf6 {[%clk 0:02:58]} 5. d4 {[%clk 0:03:01]}  exd4 {[%clk 0:02:57]} 6. cxd4 {[%clk 0:03:02]}  Bb4+ {[%clk 0:02:56]} 7. Nc3 {[%clk 0:03:03]}  Nxe4 {[%clk 0:02:50]} 8. O-O {[%clk 0:03:03]}  Nxc3 {[%clk 0:02:44]} 9. bxc3 {[%clk 0:03:00]}  Be7 {[%clk 0:02:43]} 10. d5 {[%clk 0:02:57]}  Na5 {[%clk 0:02:34]} 11. Bd3 {[%clk 0:02:50]}  O-O {[%clk 0:02:34]} 12. Qa4 {[%clk 0:02:37]}  b6 {[%clk 0:02:30]} 13. d6 {[%clk 0:02:33]}  Bxd6 {[%clk 0:02:25]} 14. Qe4 {[%clk 0:02:31]}  f5 {[%clk 0:02:08]} 15. Qxa8 {[%clk 0:02:31]}  c6 {[%clk 0:01:17]} 16. Qxa7 {[%clk 0:02:22]}  Bc5 {[%clk 0:00:59]} 17. Be3 {[%clk 0:02:15]}  Bxe3 {[%clk 0:00:45]} 18. fxe3 {[%clk 0:02:15]}  Bb7 {[%clk 0:00:45]} 19. Rab1 {[%clk 0:02:14]} 1-0


[Site "https://www.chess.com"]

[Event "Titled Tuesday Blitz November 15 Early 2022"]
[White "Ginzburg, Yakov"]
[Black "Galchenko, Matvey"]
[WhiteFideId "4157176"]
[BlackFideId "24175480"]
[WhiteElo "2305"]
[BlackElo "2403"]
[Result "1-0"]
[Round "09"]
[TimeControl "180+1"]
[Date "2022.11.16"]
[WhiteClock "0:00:06"]
[BlackClock "0:00:06"]

1. e4 {[%clk 0:02:59]}  e6 {[%clk 0:02:59]} 2. d4 {[%clk 0:02:59]}  d5 {[%clk 0:03:00]} 3. e5 {[%clk 0:02:58]}  c5 {[%clk 0:03:00]} 4. Qg4 {[%clk 0:02:58]}  cxd4 {[%clk 0:02:59]} 5. Bd3 {[%clk 0:02:55]}  Nc6 {[%clk 0:02:59]} 6. Nf3 {[%clk 0:02:55]}  h5 {[%clk 0:02:49]} 7. Qg3 {[%clk 0:02:53]}  Nh6 {[%clk 0:02:40]} 8. O-O {[%clk 0:02:48]}  Nf5 {[%clk 0:02:37]} 9. Bxf5 {[%clk 0:02:47]}  exf5 {[%clk 0:02:38]} 10. Bg5 {[%clk 0:02:34]}  Qb6 {[%clk 0:02:35]} 11. Nbd2 {[%clk 0:02:33]}  Be6 {[%clk 0:02:22]} 12. Nb3 {[%clk 0:02:32]}  a5 {[%clk 0:02:22]} 13. Rad1 {[%clk 0:02:26]}  a4 {[%clk 0:02:13]} 14. Nbxd4 {[%clk 0:02:26]}  Qxb2 {[%clk 0:01:55]} 15. c4 {[%clk 0:02:11]}  Nxd4 {[%clk 0:01:05]} 16. Nxd4 {[%clk 0:02:09]}  h4 {[%clk 0:00:54]} 17. Bxh4 {[%clk 0:02:04]}  f4 {[%clk 0:00:49]} 18. Qg5 {[%clk 0:01:55]}  Rh6 {[%clk 0:00:29]} 19. Nxe6 {[%clk 0:01:30]}  fxe6 {[%clk 0:00:27]} 20. cxd5 {[%clk 0:01:26]}  exd5 {[%clk 0:00:28]} 21. Rxd5 {[%clk 0:01:25]}  Kf7 {[%clk 0:00:28]} 22. Qxf4+ {[%clk 0:01:00]}  Kg8 {[%clk 0:00:28]} 23. Bg5 {[%clk 0:01:00]}  Rg6 {[%clk 0:00:25]} 24. Rd2 {[%clk 0:00:42]}  Qb6 {[%clk 0:00:25]} 25. Rd7 {[%clk 0:00:39]}  a3 {[%clk 0:00:19]} 26. h4 {[%clk 0:00:38]}  Qc6 {[%clk 0:00:14]} 27. Qf7+ {[%clk 0:00:35]}  Kh7 {[%clk 0:00:15]} 28. f4 {[%clk 0:00:28]}  Bc5+ {[%clk 0:00:08]} 29. Kh2 {[%clk 0:00:27]}  Rf8 {[%clk 0:00:09]} 30. Qd5 {[%clk 0:00:24]}  Qxd5 {[%clk 0:00:08]} 31. Rxd5 {[%clk 0:00:24]}  b6 {[%clk 0:00:09]} 32. g4 {[%clk 0:00:20]}  Kg8 {[%clk 0:00:09]} 33. f5 {[%clk 0:00:20]}  Rc6 {[%clk 0:00:09]} 34. e6 {[%clk 0:00:20]}  Re8 {[%clk 0:00:09]} 35. h5 {[%clk 0:00:18]}  Bf8 {[%clk 0:00:09]} 36. Kg3 {[%clk 0:00:16]}  Rc4 {[%clk 0:00:08]} 37. Rd7 {[%clk 0:00:15]}  Bc5 {[%clk 0:00:06]} 38. Rfd1 {[%clk 0:00:14]}  Rc3+ {[%clk 0:00:04]} 39. Kg2 {[%clk 0:00:12]}  Rc2+ {[%clk 0:00:04]} 40. R1d2 {[%clk 0:00:13]}  Rxd2+ {[%clk 0:00:04]} 41. Bxd2 {[%clk 0:00:13]}  b5 {[%clk 0:00:05]} 42. Bc3 {[%clk 0:00:13]}  Bf8 {[%clk 0:00:05]} 43. g5 {[%clk 0:00:11]}  b4 {[%clk 0:00:05]} 44. Bd4 {[%clk 0:00:09]}  Rc8 {[%clk 0:00:05]} 45. f6 {[%clk 0:00:07]}  gxf6 {[%clk 0:00:05]} 46. gxf6 {[%clk 0:00:07]}  b3 {[%clk 0:00:06]} 47. axb3 {[%clk 0:00:07]}  Ra8 {[%clk 0:00:06]} 48. f7+ {[%clk 0:00:06]}  Kh7 {[%clk 0:00:06]} 49. e7 {[%clk 0:00:07]}  a2 {[%clk 0:00:06]} 50. exf8=Q {[%clk 0:00:07]}  Rxf8 {[%clk 0:00:06]} 51. Ra7 {[%clk 0:00:07]}  a1=Q {[%clk 0:00:04]} 52. Rxa1 {[%clk 0:00:07]}  Kh6 {[%clk 0:00:04]} 53. Kg3 {[%clk 0:00:07]}  Rxf7 {[%clk 0:00:04]} 54. Ra5 {[%clk 0:00:07]}  Rd7 {[%clk 0:00:04]} 55. Be3+ {[%clk 0:00:07]}  Kh7 {[%clk 0:00:04]} 56. Kf3 {[%clk 0:00:07]}  Rf7+ {[%clk 0:00:04]} 57. Ke2 {[%clk 0:00:07]}  Kg8 {[%clk 0:00:05]} 58. Ra7 {[%clk 0:00:07]}  Rf5 {[%clk 0:00:05]} 59. h6 {[%clk 0:00:07]}  Rh5 {[%clk 0:00:06]} 60. h7+ {[%clk 0:00:07]}  Kf8 {[%clk 0:00:05]} 61. Bd4 {[%clk 0:00:06]}  Rh2+ {[%clk 0:00:05]} 62. Kd3 {[%clk 0:00:06]}  Rh3+ {[%clk 0:00:05]} 63. Kc4 {[%clk 0:00:07]}  Rxh7 {[%clk 0:00:06]} 64. Rxh7 {[%clk 0:00:06]} 1-0


[Site "https://www.chess.com"]